{"text_format":"1","workbook":"xlsx","n_sheets":13,"sheets":["Cover Page","ReadMe","Exposure Summary","QC","Exposure Point Summary","Exposure Parameters","Exposure Calcs","Exposure Results","Exposure Results (2)","Exposure Results (3)","Scenario 1_Static","Scenario 2_Static","Scenario 3_Static"],"not_rendered":{"charts":0,"images":1,"macros":1,"external_links":5,"defined_names":229,"comments":0,"pivot_tables":0},"unopened":[],"bounds":{"document_bytes":16777216,"sheet_cells":100000,"rows_first":2000,"rows_last":500,"rows_between":2000,"halvings":0,"cell_chars":16384,"cell_head_chars":4096},"cells_cut":0,"cells_raw":0,"read":"whole","date_system":"1900"}

{"sheet":"Cover Page","index":0,"n_rows":11,"n_cols":2,"rows_kept":11,"cut":false,"hidden":false,"merged":[]}
[]
[]
[]
[]
[null,"Risk Evaluation for 1,1-Dichloroethane  -"]
[]
[null,"Supplemental Information File:"]
[]
[null,"Repackaging Occupational Exposure Modeling Results"]
[]
[null,"CASRN: 75-34-3"]

{"sheet":"ReadMe","index":1,"n_rows":23,"n_cols":3,"rows_kept":23,"cut":false,"hidden":false,"merged":[[22,1,22,2],[21,1,21,2],[3,1,3,2],[20,1,20,2],[19,1,19,2],[18,1,18,2],[17,1,17,2]]}
[]
[null,"Instructions for Using this Spreadsheet"]
[]
[null,"Table of Contents"]
[null,"Worksheet","Description"]
[null,"Instructions (this worksheet)","Provides instructions to the user on the use of this spreadsheet"]
[null,"Exposure Point Summary","Summarizes the Exposure Points and associated parameters used to calculate the amount of annual exposure from each Exposure Point"]
[null,"Exposure Parameters","A list of parameters for the exposure calculations. Allows an advanced user to select between performing a deterministic or Monte Carlo simulation. Monte Carlo formulas on this worksheet are based on the Monte Carlo simulator @Risk. Certain cells will appear with the \"#NAME?\" error indicator if a user does not have the program @Risk. The user must not alter parameters in this worksheet. Turn Monte Carlo \"Off\" using the toggle at the top of the sheet to view deterministic calculations (@Risk not needed for this)."]
[null,"Exposure Calcs","Performs the exposure calculations. This worksheet contains @Risk formulas to capture results during a Monte Carlo simulation iteration. Certain cells will appear with the \"#NAME?\" error indicator if a user does not have the program @Risk. The user must not alter this worksheet."]
[null,"Exposure Results","Provides the release results for scenario 1 from the Monte Carlo simulation. The user must not alter this worksheet."]
[null,"Exposure Results (2)","Provides the release results for scenario 2 from the Monte Carlo simulation. The user must not alter this worksheet."]
[null,"Exposure Results (3)","Provides the release results for scenario 3 from the Monte Carlo simulation. The user must not alter this worksheet."]
[null,"Scenario 1_Static","Scenario 1: All activities\n\nProvides static exposure results from running the simulation with the specified parameters for the given scenario. @Risk not needed to view."]
[null,"Scenario 2_Static","Scenario 2: Activities A & C (unloading and container cleaning)\n\nProvides static exposure results from running the simulation with the specified parameters for the given scenario. @Risk not needed to view."]
[null,"Scenario 2_Static","Scenario 2: Activity B (loading)\n\nProvides static exposure results from running the simulation with the specified parameters for the given scenario. @Risk not needed to view."]
[]
[]
[null,"General Notes/Assumptions"]
[null,"Assume 1,1-Dichloroethane (1,1-DCA) imported in pure form, which would be liquid form."]
[null,"Applied ChemSTEER User Guide to define General Methodology models to determine equations and their parameters for inhalation exposure routes."]
[null,"Potential for 1,1-Dichloroethane to be imported and stored in drums, which would only constitute repackaging into smaller containers; conservative estimate that 1,1-Dichloroethane imported in larger quantity and transferred to drums first."]
[null,"Release points identified from the July 2022 Repackaging GS were the basis for determining all inhalation exposure points."]
[null,"When the EPA/OPPT Mass Balance Inhalation Model is used for assessing exposure, the exposure duration 'h', uses the same exposure duration used when assessing the release durations."]

{"sheet":"Exposure Summary","index":2,"n_rows":18,"n_cols":13,"rows_kept":18,"cut":false,"hidden":false,"merged":[[15,5,15,6],[15,7,15,8],[15,9,15,10],[15,11,15,12],[15,0,16,0],[15,1,15,2],[15,3,15,4],[2,0,3,0],[2,1,2,2],[2,3,2,4],[2,5,2,6],[9,0,10,0],[9,1,9,2],[9,3,9,4],[9,5,9,6],[11,5,12,5],[11,6,12,6],[9,9,9,10],[9,11,9,12],[2,7,2,8],[4,5,6,5],[4,6,6,6],[4,7,6,7],[4,8,6,8],[9,7,9,8],[2,9,2,10],[2,11,2,12],[4,9,6,9],[4,10,6,10],[4,11,6,11],[4,12,6,12],[11,9,12,9],[11,10,12,10],[11,11,12,11],[11,12,12,12],[11,7,12,7],[11,8,12,8]]}
["Exposure Summary - 50th and 95th Percentile estimates"]
["Scenario 1: Activities A, B, & C"]
["Exposure Point","Mass Concentration [mg/m^3]",null,"Volume Concentration [ppm]",null,"Exposure Days per Year",null,"Exposure Hours per Day",null,"8-hr TWA (ppm)",null,"24-hr TWA (ppm)"]
[null,"50th Percentile","95th Percentile","50th Percentile","95th Percentile","Minimum","Maximum","Minimum","Maximum","50th Percentile","95th Percentile","50th Percentile","95th Percentile"]
["A. Emptying (drums)",{"$f":"INDEX('Scenario 1_Static'!$B$34:$D$40,MATCH(B$4,'Scenario 1_Static'!$A$34:$A$40, 0), MATCH($A5, 'Scenario 1_Static'!$B$31:$D$31,0))","v":1120.0771030592755},{"$f":"INDEX('Scenario 1_Static'!$B$34:$D$40,MATCH(C$4,'Scenario 1_Static'!$A$34:$A$40, 0), MATCH($A5, 'Scenario 1_Static'!$B$31:$D$31,0))","v":4242.7571224562635},{"$f":"INDEX('Scenario 1_Static'!$B$43:$D$49,MATCH(D$4,'Scenario 1_Static'!$A$43:$A$49, 0), MATCH($A5, 'Scenario 1_Static'!$B$31:$D$31,0))","v":276.76488296916915},{"$f":"INDEX('Scenario 1_Static'!$B$43:$D$49,MATCH(E$4,'Scenario 1_Static'!$A$43:$A$49, 0), MATCH($A5, 'Scenario 1_Static'!$B$31:$D$31,0))","v":1048.3619165644834},{"$f":"'Scenario 1_Static'!$G$15","v":26},{"$f":"'Scenario 1_Static'!$G$10","v":129},{"$f":"'Scenario 1_Static'!$G$25","v":0.11767861134737172},{"$f":"'Scenario 1_Static'!$G$20","v":0.42527047448703481},{"$f":"('Scenario 1_Static'!$B$23*24.45)/'Exposure Parameters'!$D$22","v":3.5209120216028555},{"$f":"('Scenario 1_Static'!$B$22*24.45)/'Exposure Parameters'!$D$22","v":12.886183268649702},{"$f":"('Scenario 1_Static'!$C$23*24.45)/'Exposure Parameters'!$D$22","v":1.173637340534285},{"$f":"('Scenario 1_Static'!$C$22*24.45)/'Exposure Parameters'!$D$22","v":4.2953944228832341}]
["B. Filling (small containers)",{"$f":"INDEX('Scenario 1_Static'!$B$34:$D$40,MATCH(B$4,'Scenario 1_Static'!$A$34:$A$40, 0), MATCH($A6, 'Scenario 1_Static'!$B$31:$D$31,0))","v":563.28562867341907},{"$f":"INDEX('Scenario 1_Static'!$B$34:$D$40,MATCH(C$4,'Scenario 1_Static'!$A$34:$A$40, 0), MATCH($A6, 'Scenario 1_Static'!$B$31:$D$31,0))","v":2237.0308152272846},{"$f":"INDEX('Scenario 1_Static'!$B$43:$D$49,MATCH(D$4,'Scenario 1_Static'!$A$43:$A$49, 0), MATCH($A6, 'Scenario 1_Static'!$B$31:$D$31,0))","v":139.18477636245674},{"$f":"INDEX('Scenario 1_Static'!$B$43:$D$49,MATCH(E$4,'Scenario 1_Static'!$A$43:$A$49, 0), MATCH($A6, 'Scenario 1_Static'!$B$31:$D$31,0))","v":552.75799325221942}]
["C. Container Cleaning (drums)",{"$f":"INDEX('Scenario 1_Static'!$B$34:$D$40,MATCH(B$4,'Scenario 1_Static'!$A$34:$A$40, 0), MATCH($A7, 'Scenario 1_Static'!$B$31:$D$31,0))","v":0.56723260275654963},{"$f":"INDEX('Scenario 1_Static'!$B$34:$D$40,MATCH(C$4,'Scenario 1_Static'!$A$34:$A$40, 0), MATCH($A7, 'Scenario 1_Static'!$B$31:$D$31,0))","v":6.624247097127272},{"$f":"INDEX('Scenario 1_Static'!$B$43:$D$49,MATCH(D$4,'Scenario 1_Static'!$A$43:$A$49, 0), MATCH($A7, 'Scenario 1_Static'!$B$31:$D$31,0))","v":0.14016005191912723},{"$f":"INDEX('Scenario 1_Static'!$B$43:$D$49,MATCH(E$4,'Scenario 1_Static'!$A$43:$A$49, 0), MATCH($A7, 'Scenario 1_Static'!$B$31:$D$31,0))","v":1.6368149724584313}]
[]
["Scenario 2: Activities A & C"]
["Exposure Point","Mass Concentration [mg/m^3]",null,"Volume Concentration [ppm]",null,"Exposure Days per Year",null,"Exposure Hours per Day",null,"8-hr TWA (ppm)",null,"24-hr TWA (ppm)"]
[null,"50th Percentile","95th Percentile","50th Percentile","95th Percentile","Minimum","Maximum","Minimum","Maximum","50th Percentile","95th Percentile","50th Percentile","95th Percentile"]
["A. Emptying (drums)",{"$f":"INDEX('Scenario 2_Static'!$B$34:$C$40,MATCH(B$11,'Scenario 2_Static'!$A$34:$A$40, 0), MATCH($A12,'Scenario 2_Static'!$B$31:$C$31,0))","v":1120.0771030592755},{"$f":"INDEX('Scenario 2_Static'!$B$34:$C$40,MATCH(C$11,'Scenario 2_Static'!$A$34:$A$40, 0), MATCH($A12,'Scenario 2_Static'!$B$31:$C$31,0))","v":4242.7571224562635},{"$f":"INDEX('Scenario 2_Static'!$B$43:$C$49,MATCH(D$11,'Scenario 2_Static'!$A$43:$A$49, 0), MATCH($A12,'Scenario 2_Static'!$B$31:$C$31,0))","v":276.76488296916915},{"$f":"INDEX('Scenario 2_Static'!$B$43:$C$49,MATCH(E$11,'Scenario 2_Static'!$A$43:$A$49, 0), MATCH($A12,'Scenario 2_Static'!$B$31:$C$31,0))","v":1048.3619165644834},{"$f":"'Scenario 2_Static'!$G$15","v":26},{"$f":"'Scenario 2_Static'!$G$10","v":129},{"$f":"'Scenario 2_Static'!$G$25","v":0.1},{"$f":"'Scenario 2_Static'!$G$20","v":0.1},{"$f":"('Scenario 2_Static'!$B$23*24.45)/'Exposure Parameters'!$D$22","v":1.7316263367360394},{"$f":"('Scenario 2_Static'!$B$22*24.45)/'Exposure Parameters'!$D$22","v":6.5554449319925379},{"$f":"('Scenario 2_Static'!$C$23*24.45)/'Exposure Parameters'!$D$22","v":0.57720877891201305},{"$f":"('Scenario 2_Static'!$C$22*24.45)/'Exposure Parameters'!$D$22","v":2.1851483106641791}]
["C. Container Cleaning (drums)",{"$f":"INDEX('Scenario 2_Static'!$B$34:$C$40,MATCH(B$11,'Scenario 2_Static'!$A$34:$A$40, 0), MATCH($A13,'Scenario 2_Static'!$B$31:$C$31,0))","v":0.56723260275654963},{"$f":"INDEX('Scenario 2_Static'!$B$34:$C$40,MATCH(C$11,'Scenario 2_Static'!$A$34:$A$40, 0), MATCH($A13,'Scenario 2_Static'!$B$31:$C$31,0))","v":6.624247097127272},{"$f":"INDEX('Scenario 2_Static'!$B$43:$C$49,MATCH(D$11,'Scenario 2_Static'!$A$43:$A$49, 0), MATCH($A13,'Scenario 2_Static'!$B$31:$C$31,0))","v":0.14016005191912723},{"$f":"INDEX('Scenario 2_Static'!$B$43:$C$49,MATCH(E$11,'Scenario 2_Static'!$A$43:$A$49, 0), MATCH($A13,'Scenario 2_Static'!$B$31:$C$31,0))","v":1.6368149724584313}]
[]
["Scenario 2: Activity B"]
["Exposure Point","Mass Concentration [mg/m^3]",null,"Volume Concentration [ppm]",null,"Exposure Days per Year",null,"Exposure Hours per Day",null,"8-hr TWA (ppm)",null,"24-hr TWA (ppm)"]
[null,"50th Percentile","95th Percentile","50th Percentile","95th Percentile","Minimum","Maximum","Minimum","Maximum","50th Percentile","95th Percentile","50th Percentile","95th Percentile"]
["B. Filling (small containers)",{"$f":"INDEX('Scenario 3_Static'!$B$34:$B$40,MATCH(B$17,'Scenario 3_Static'!$A$34:$A$40, 0))","v":563.28562867341907},{"$f":"INDEX('Scenario 3_Static'!$B$34:$B$40,MATCH(C$17,'Scenario 3_Static'!$A$34:$A$40, 0))","v":2237.0308152272846},{"$f":"INDEX('Scenario 3_Static'!$B$43:$B$49,MATCH(D$17,'Scenario 3_Static'!$A$43:$A$49, 0))","v":139.18477636245674},{"$f":"INDEX('Scenario 3_Static'!$B$43:$B$49,MATCH(E$17,'Scenario 3_Static'!$A$43:$A$49, 0))","v":552.75799325221942},{"$f":"'Scenario 3_Static'!G15","v":26},{"$f":"'Scenario 3_Static'!G10","v":129},{"$f":"'Scenario 3_Static'!G25","v":1.7678611347371708E-2},{"$f":"'Scenario 3_Static'!G20","v":0.32527047448703483},{"$f":"('Scenario 3_Static'!$B$23*24.45)/'Exposure Parameters'!$D$22","v":1.7292271011445295},{"$f":"('Scenario 3_Static'!$B$22*24.45)/'Exposure Parameters'!$D$22","v":6.5815860705619036},{"$f":"('Scenario 3_Static'!$C$23*24.45)/'Exposure Parameters'!$D$22","v":0.5764090337148432},{"$f":"('Scenario 3_Static'!$C$22*24.45)/'Exposure Parameters'!$D$22","v":2.1938620235206345}]

{"sheet":"QC","index":3,"n_rows":35,"n_cols":12,"rows_kept":35,"cut":false,"hidden":true,"merged":[[11,0,11,11],[17,0,17,11],[12,6,12,8],[12,9,12,11],[12,1,12,3],[12,4,12,5],[30,0,30,11],[18,0,18,11],[19,1,19,3],[19,4,19,5],[19,6,19,8],[19,9,19,11],[22,0,23,11],[24,0,24,11],[25,1,25,3],[25,4,25,5],[25,6,25,8],[25,9,25,11],[31,0,31,11],[32,1,32,3],[32,4,32,5],[32,6,32,8],[32,9,32,11]]}
[]
[]
[]
[]
[]
[]
[]
[]
[]
[]
[]
["Scenario 1 (1,1-DCA)"]
[null,"Daily Concentrations",null,null,"Time-Weighted Averages",null,"Exposure Point Mass Concentration [mg/m^3]",null,null,"Exposure Point Volume Concentration [ppm]"]
[null,"Average Daily Concentration (ADC) [mg/m^3]","Lifetime Average Daily Concentration (LADC) [mg/m^3]","Subchronic Average Daily Concentration (ADCsubchronic) [mg/m^3]","TWA8hr [mg/m^3]","TWA24hr [mg/m^3]","A. Emptying (drums)","B. Filling (small containers)","C. Container Cleaning (drums)","A. Emptying (drums)","B. Filling (small containers)","C. Container Cleaning (drums)"]
["Concentration",1.6481823273777461,0.68718312108400903,60.158654949287737,468.88950199673201,156.29650066557733,50330.717015056282,24808.752512935316,145.4291834050575,12436.442961274644,6130.1061034994282,35.934750219844929]
["Adjusted Concentration",{"$f":"B15*(0.0613/227)","v":4.450818355429772E-4},{"$f":"C15*(0.0613/227)","v":1.8556971507687115E-4},1.6245486997318669E-2,0.12662082146431572,4.2206940488105242E-2,13.591510806268502,6.6994560750790084,3.9272286091321697E-2,3.3583874604675579,1.6553986966718719,9.7039655880021766E-3]
["Relative Percent Change from TCEP",{"$f":"((B16-B22)/((B22+B16)/2))*100","v":-111.74240022446362},{"$f":"((C16-C22)/((C22+C16)/2))*100","v":-108.91535280654061},-111.74240022446362,-110.13191554190857,-110.13191554190857,-93.742060738434333,-109.74279701280345,-133.43417238872999,4.2753305831376283,-17.30527090024006,-53.808420694749223]
[]
["Scenario 1 (TCEP)"]
[null,"Daily Concentrations",null,null,"Time-Weighted Averages",null,"Exposure Point Mass Concentration [mg/m^3]",null,null,"Exposure Point Volume Concentration [ppm]"]
[null,"Average Daily Concentration (ADC) [mg/m^3]","Lifetime Average Daily Concentration (LADC) [mg/m^3]","Subchronic Average Daily Concentration (ADCsubchronic) [mg/m^3]","TWA8hr [mg/m^3]","TWA24hr [mg/m^3]","A. Emptying (drums)","B. Filling (small containers)","C. Container Cleaning (drums)","A. Emptying (drums)","B. Filling (small containers)","C. Container Cleaning (drums)"]
["Concentration",1.5721125439776265E-3,6.2936329853070219E-4,5.7382107855183363E-2,0.43696444789062816,0.14565481596354271,37.572706759861759,22.991054392121537,0.19671838660436425,3.2178103621094256,1.9690051486474884,1.6847401143566167E-2]
[]
[]
["Scenario 2 (1,1-DCA)"]
[null,"Daily Concentrations",null,null,"Time-Weighted Averages",null,"Exposure Point Mass Concentration [mg/m^3]",null,null,"Exposure Point Volume Concentration [ppm]"]
[null,"Average Daily Concentration (ADC) [mg/m^3]","Lifetime Average Daily Concentration (LADC) [mg/m^3]","Subchronic Average Daily Concentration (ADCsubchronic) [mg/m^3]","TWA8hr [mg/m^3]","TWA24hr [mg/m^3]","A. Emptying (drums)","B. Filling (small containers)","C. Container Cleaning (drums)","A. Emptying (drums)","B. Filling (small containers)","C. Container Cleaning (drums)"]
["Concentration",15.114839416493925,7.7429110262747365,360.96580284308135,492.22609478602004,164.07536492867334,43898.825820369253,28008.444646155684,137.31770770388223,10847.158072845155,6920.7324062506959,33.93044925073189]
["Adjusted Concentration",{"$f":"B28*(0.0613/227)","v":4.0816724944100335E-3},{"$f":"C28*(0.0613/227)","v":2.0909270744962172E-3},9.7476668344849721E-2,0.13292272956115872,4.4307576520386235E-2,11.854616840478569,7.5635139066490895,3.7081830318273043E-2,2.9292105280414451,1.8689026277672582,9.162716031144779E-3]
["Relative Percent Change from TCEP",{"$f":"((B29-B35)/((B35+B29)/2))*100","v":-88.815997333676961},{"$f":"((C29-C35)/((C35+C29)/2))*100","v":-80.044163192185209},-88.098880127168215,-88.098880127168187,-88.098880127168201,-92.018453995555589,-114.49334814870053,-112.59906239139103,6.4713075587575792,-24.159096470781236,-21.400071789303023]
[]
["Scenario 2 (TCEP)"]
[null,"Daily Concentrations",null,null,"Time-Weighted Averages",null,"Exposure Point Mass Concentration [mg/m^3]",null,null,"Exposure Point Volume Concentration [ppm]"]
[null,"Average Daily Concentration (ADC) [mg/m^3]","Lifetime Average Daily Concentration (LADC) [mg/m^3]","Subchronic Average Daily Concentration (ADCsubchronic) [mg/m^3]","TWA8hr [mg/m^3]","TWA24hr [mg/m^3]","A. Emptying (drums)","B. Filling (small containers)","C. Container Cleaning (drums)","A. Emptying (drums)","B. Filling (small containers)","C. Container Cleaning (drums)"]
["Concentration",1.0602715174775212E-2,4.8813958407985516E-3,0.25096191191467043,0.3422207889745506,0.1140735963248502,32.058874970393063,27.818593767511445,0.13262724298402756,2.7455935165018399,2.3824463820647126,1.1358492735155256E-2]

{"sheet":"Exposure Point Summary","index":4,"n_rows":20,"n_cols":12,"rows_kept":20,"cut":false,"hidden":false,"merged":[[0,3,0,9],[0,10,0,11],[0,0,0,1],[2,4,2,5],[2,6,2,7],[2,8,2,9],[1,4,1,5],[1,6,1,7],[1,8,1,9]]}
["Parameter Definition",null,null,"Exposure Points (from ESD/GS)",null,null,null,null,null,null,"General Parameters"]
["Possible Parameters","Variable",null,"Exposure Point","A. Emptying (drums)",null,"B. Filling (small containers)",null,"C. Container Cleaning",null,"Number of Sites","Ns"]
["Saturation Factor Unloading","Fsaturation_unloading",null,"General Methodology","EPA/OPPT Mass Balance Inhalation Model",null,"EPA/OPPT Mass Balance Inhalation Model",null,"EPA/OPPT Mass Balance Inhalation Model",null,"Production Volume","PV"]
["1,1-DCA Molecular Weight","MW",null,"Input Parameters:","1,1-DCA Mass Fraction","F11DCA ","1,1-DCA Mass Fraction","F11DCA ","1,1-DCA Mass Fraction","F11DCA ","1,1-DCA Density","rho11DCA"]
["Import Container Volume","Vimport_cont",null,null,"Molar Volume","Vm","Molar Volume","Vm","Molar Volume","Vm","Hours exposed per day","ED"]
["Fill Rate of Drum","RATEfill_drum",null,null,"Molecular Weight","MW","Molecular Weight","MW","Molecular Weight","MW","Days exposed per year","EFyearly"]
["1,1-DCA Vapor Pressure","VP",null,null,"Unload Rate of Import Containers","Ratefill_drum","Loading Rate of fill Containers","Ratefill_smallcont","Hours exposed per day for Activity","hC","Working years","WY"]
["Gas Constant","R",null,null,"Hours exposed per day for Activity","hA","Vapor Pressure","VP","Vapor Pressure","VP","Lifetime years","LT"]
["Temperature","T",null,null,"Vapor Pressure","VP","Ventilation Rate","Q","Ventilation Rate","Q","Averaging time","AT"]
["Production Volume","PV",null,null,"Ventilation Rate","Q","Mixing Factor","k","Mixing Factor","k","Averaging time over lifetime","ATc"]
["1,1-DCA Density","r",null,null,"Mixing Factor","k","Vapor Pressure Correction Factor","X","Vapor Pressure Correction Factor","X","8-hour Time-weighted average","TWA8hr"]
["Saturation Factor Loading","Fsaturation_loading",null,null,"Vapor Pressure Correction Factor","X","Temperature","T","Temperature","T","24-hour Time-weighted Average","TWA24hr"]
["Small Container Volume","Vfill_cont",null,null,"Temperature","T","Saturation Factor Loading","Fsaturation_Loading","Gas Constant","R","Average Daily Concentration","ADC"]
["Fill Rate of Small Container","RATEfill_smallcont",null,null,"Saturation Factor Unloading","Fsaturation_unloading","Filling Container Volume","Vfillcont","Air speed","Rateair_speed","Lifetime Average Daily Concentration","LADC"]
["1,1-DCA Mass Fraction/VP Correction Factor","F11DCA",null,null,"Import Container Volume","Vimportcont","Gas Constant","R","Diameter of Opening for Container Cleaning","Dopening_cont-cleaning","Subchronic Days exposed per year","EFsubchronic"]
["Air Speed","RATEair_speed",null,null,"Gas Constant","R","Import Container Volume","Vimportcont","Pressure","P","Subchronic averaging time","ATsc"]
["Diameter of Opening for Container Cleaning","Dopening_cont-cleaning",null,null,null,null,null,null,null,null,"Subchronic Average Daily Concentration","ADCsubchronic"]
["Pressure","P"]
["Container Loss Fraction","Floss_cont"]
["Number of Sites","Ns"]

{"sheet":"Exposure Parameters","index":5,"n_rows":39,"n_cols":16,"rows_kept":39,"cut":false,"hidden":false,"merged":[[3,9,4,9],[3,11,4,11],[3,12,4,12],[12,1,13,1],[12,2,13,2],[12,12,13,12],[3,1,4,1],[3,3,4,3],[3,2,4,2],[3,6,3,8],[3,4,3,5]]}
[]
[null,"Turn Monte Carlo On or Off","On"]
[]
[null,"Input Parameter","Symbol","Unit","Deterministic Values",null,"Uncertainty Analysis Distribution Parameters",null,null,"Distribution Type",null,"Selected Value (Deterministic or @Risk Formula)","Notes/Comments"]
[null,null,null,null,"Value","Basis","Lower Bound","Upper Bound","Mode",null,"@Risk Formulas",null,null,null,null,"On/Off Drop Down"]
[null,"Working Years","WY","years",36,"Typical",10.4,44,36,"Triangular",{"$f":"_xll.RiskTriang(G6,I6,H6,_xll.RiskStatic(E6))","v":{"$error":"#NAME?"}},{"$f":"IF($C$2=$P$6, K6, E6)","v":{"$error":"#NAME?"}},"Based on data from the U.S. Bureau of Labor Statistics (U.S. BLS) Current Population Survey (CPS) and the U.S. Census Bureau Survey of Income and Program Participation (SIPP).",null,null,"On"]
[null,"Ventilation Rate","Q","ft3/min",3000,"Typical",500,10000,3000,"Triangular",{"$f":"_xll.RiskTriang(G7,I7,H7,_xll.RiskStatic(E7))","v":{"$error":"#NAME?"}},{"$f":"IF($C$2=$P$6, K7, E7)","v":{"$error":"#NAME?"}},"From 1991 CEB Manual",null,null,"Off"]
[null,"Mixing Factor","k","dimensionless",0.5,"Typical",0.1,1,0.5,"Triangular",{"$f":"_xll.RiskTriang(G8,I8,H8,_xll.RiskStatic(E8))","v":{"$error":"#NAME?"}},{"$f":"IF($C$2=$P$6, K8, E8)","v":{"$error":"#NAME?"}},"From 1991 CEB Manual"]
[null,"Saturation Factor Unloading","Fsaturation_unloading","kg/kg",0.5,"Typical",0.5,1.45,0.5,"Triangular",{"$f":"_xll.RiskTriang(G9,I9,H9,_xll.RiskStatic(E9))","v":{"$error":"#NAME?"}},{"$error":"#NAME?"},"AP-42 provided values"]
[null,"Saturation Factor Loading","Fsaturation_loading","kg/kg",0.5,"Typical",0.5,1.45,0.5,"Triangular",{"$f":"_xll.RiskTriang(G10,I10,H10,_xll.RiskStatic(E10))","v":{"$error":"#NAME?"}},{"$error":"#NAME?"},"AP-42 provided values"]
[null,"Import Container Volume","Vimport_cont","gal/container",55,"Typical",20,100,55,"Triangular",{"$f":"_xll.RiskTriang(G11,I11,H11,_xll.RiskStatic(E11))","v":{"$error":"#NAME?"}},{"$error":"#NAME?"},"Standard EPA values for Vapor Generation Rate/Volatile Air Release Models given as 20 to <100 gallons for drum volume, with 55 gallons as default value. Typically use drums for given throughput as suggested in ESD on Transport and Storage (HERO ID 6393282)."]
[null,"Small Container Volume","Vfill_cont","gal/container",5,"Typical",5,20,5,"Triangular",{"$f":"_xll.RiskTriang(G12,I12,H12,_xll.RiskStatic(E12))","v":{"$error":"#NAME?"}},{"$error":"#NAME?"},"Standard EPA values for Vapor Generation Rate/Volatile Air Release Models given as 5 to <20 gallons for small container volume, with 5 gallons as default value. "]
[null,"Air Speed","RATEair_speed","cm/s",10,"50th percentile",1.3,202.2,"—","Lognormal",{"$f":"_xll.RiskLognorm(22.414,19.958,_xll.RiskTruncate(G13,H13),_xll.RiskName(B13),_xll.RiskStatic(E13))","v":{"$error":"#NAME?"}},{"$f":"IF($C$2=$P$6, K13, E13)","v":{"$error":"#NAME?"}},"Distribution using EPA's air speed model for industrial uses; converted to ft/min for model use. For industrial facilities, it’s a lognormal distribution with mean of 22.414 cm/s, standard deviation of 19.958 cm/s, max truncated at 202.2 cm/s."]
[null,null,null,"ft/min",{"$f":"E13*ft_per_cm*60","v":19.684799999999999},"50th percentile",{"$f":"G13*ft_per_cm*60","v":2.559024},{"$f":"H13*ft_per_cm*60","v":398.02665599999995},"—","Lognormal",{"$f":"(K13*ft_per_cm*60)","v":{"$error":"#NAME?"}},{"$f":"IF($C$2=$P$6, K14, E14)","v":{"$error":"#NAME?"}}]
[]
[null,"Constants and Unit Conversions","Symbol","Value","Unit","Notes/Comments"]
[null,"Number of Sites","Ns",2,"sites"]
[null,"Production Volume Assessed","PV_lbs",50000,"lbs/yr"]
[null,"Production Volume","PV",{"$f":"D18/lbs_per_kg","v":22679.645471781987},"kg/yr","used for calcs"]
[null,"1,1-DCA Import Mass Fraction","F11DCA",1,"kg/kg","Also used for vapor pressure correction factor (X)"]
[null,"1,1-DCA Molar Volume","Vm11DCA",24.45,"L/mol","Molar Volume at STP"]
[null,"1,1-DCA Molecular Weight","MW",98.95,"g/mol","From Final Scope Document"]
[null,"Fill Rate of Drum","RATEfill_drum",20,"containers/hr","From 1991 CEB Manual"]
[null,"Fill Rate of Small Container","RATEfill_smallcont",60,"containers/hr","From 1991 CEB Manual"]
[null,"Hours exposed per day","ED",8,"hrs/day","Assuming a full 8-hr shift"]
[null,"Lifetime years","LT",78,"years","Average Lifetime years"]
[null,"Averaging time over a lifetime (chronic)","ATc",{"$f":"D26*365*24","v":683280},"hours","Converted lifetime years to hours."]
[null,"Averaging time for subchronic exposure","ATsc",{"$f":"8*30","v":240},"hours","Provided by EPA health assessors"]
[null,"Diameter of Opening for Container Cleaning","Dopening_cont-cleaning",5.08,"cm","From 1991 CEB Manual"]
[null,"1,1-DCA Vapor Pressure","VP",227,"Torr","Final Scope (mmHg)"]
[null,"1,1-DCA Density","rho11DCA",1168,"kg/m^3","Final Scope"]
[null,"Gas Constant","R",62.363669999999999,"L*torr/mol-K","Universal Gas Constant"]
[null,"Temperature","T",298,"K","Standard temperature"]
[null,"Pressure","P",760,"torr","Standard pressure"]
[null,"lb/kg","—",2.2046199999999998,"lb/kg","Conversion"]
[null,"ft/cm","—",3.2807999999999997E-2,"ft/cm","Conversion"]
[null,"m^3/gal","—",3.7854099999999999E-3,"m^3/gal","Conversion"]
[null,"L/gal","—",3.7854000000000001,"L/gal","Conversion"]
[null,"s/hr","—",3600,"s/hr","Conversion"]

{"sheet":"Exposure Calcs","index":6,"n_rows":38,"n_cols":6,"rows_kept":38,"cut":false,"hidden":false,"merged":[[18,0,25,0],[26,0,31,0],[32,0,37,0]]}
[]
[null,"Calculation of Baseline Exposures"]
[]
[null,"Parameter Name","Symbol","Equation","Stochastic Value","Unit"]
[null,"Facility Production Rate","PVsite","PV/Ns",{"$f":"PV/Ns","v":11339.822735890993},"kg/site-year"]
[null,"Operating Days per site/Number of Import Containers/Days exposed per year","EFyearly","(PVsite/(rho11DCA*0.00378541 m3/gal*Vimport_cont)",{"$f":"_xll.RiskOutput(\"Exposure Days\")+IF(ROUNDUP((PV/Ns)/(rho_11DCA*m3_per_gal*V_importcont),0)>250, 250,ROUNDUP((PV/Ns)/(rho_11DCA*m3_per_gal*V_importcont),0))","v":{"$error":"#NAME?"}},"days/yr"]
[null,"Vapor generation rate for Activity A (Emptying Drums)","GA","[[Fsaturation_unloading*MW*(Vimport_cont*(3785.4 cm3/gal))*(RATEfill_drum/(3600 s/hr))*F11DCA*(VP)]/(R*T)]\n~Vapor generation calculated using AP-42 Loading Model~",{"$f":"((Fsat_unload*MW_11DCA*L_per_gal*V_importcont*Rate_filldrum*F_11DCA*VP_11DCA)/(s_per_hr*Temp*R_Ltorr_molK))","v":{"$error":"#NAME?"}},"g/s"]
[null,"Activity A volumetric concentration of chemical in air (Emptying drums)","CvA","Lesser of:\n(170,000*T*GA)/(MW*Q*k)\nOR\n(1,000,000*F11DCA*VP)/760",{"$f":"_xll.RiskOutput(\"Cv_A\")+IF((170000*Temp*G_A)/(MW_11DCA*Ventilation_rate*Mixing_factor)>((1000000*F_11DCA*VP_11DCA)/760),((1000000*F_11DCA*VP_11DCA)/760),(170000*Temp*G_A)/(MW_11DCA*Ventilation_rate*Mixing_factor))","v":{"$error":"#NAME?"}},"ppm"]
[null,"Activity A mass concentration of chemical in air (Emptying drums)","CmA","CvA*MW/Vm",{"$f":"_xll.RiskOutput(\"Cm_A\")+Cv_A*MW_11DCA/Vm_11DCA","v":{"$error":"#NAME?"}},"mg/m3"]
[null,"Hours exposed per day for activity A (Emptying Drums)","hA","[(Containers/year)/(EFyearly)]/Ratefill_drum",{"$f":"1/Rate_filldrum","v":0.05},"hr/day"]
[null,"Vapor generation rate for Activity B (Filling Small Containers)","GB","[[Fsaturation_loading*MW*(Vsmallcont*(3785.4 cm3/gal))*(RATEfill_smallcont/(3600 s/hr))*F11DCA*(VP)]/(R*T)]\n~Vapor generation calculated using AP-42 Loading Model~",{"$f":"((Fsat_load*MW_11DCA*L_per_gal*V_smallcont*Rate_fillsmallcont*F_11DCA*VP_11DCA)/(s_per_hr*Temp*R_Ltorr_molK))","v":{"$error":"#NAME?"}},"g/s"]
[null,"Activity B volumetric concentration of chemical in air (Filling small containers)","CvB","Lesser of:\n(170,000*T*GB)/(MW*Q*k)\nOR\n(1,000,000*F11DCA*VP)/760",{"$f":"_xll.RiskOutput(\"Cv_B\")+IF((170000*Temp*G_B)/(MW_11DCA*Ventilation_rate*Mixing_factor)>((1000000*F_11DCA*VP_11DCA)/760),((1000000*F_11DCA*VP_11DCA)/760),(170000*Temp*G_B)/(MW_11DCA*Ventilation_rate*Mixing_factor))","v":{"$error":"#NAME?"}},"ppm"]
[null,"Activity B mass concentration of chemical in air (Filling small containers)","CmB","CvB*MW/Vm",{"$f":"_xll.RiskOutput(\"Cm_B\")+Cv_B*MW_11DCA/Vm_11DCA","v":{"$error":"#NAME?"}},"mg/m3"]
[null,"Hours exposed per day for activity B (Filling small containers)","hB","V_importcont/V_smallcont/Rate_fillsmallcont",{"$f":"V_importcont/V_smallcont/Rate_fillsmallcont","v":{"$error":"#NAME?"}},"hours"]
[null,"Vapor generation rate for Activity C (Container Cleaning)","GC","~Vapor generation rate calculated using Penetration Model or Mass Transfer Coefficient Model as outlined below~\nPenetration Model (if air speed <= 100 ft/min):\nGC=[[(8.24E-8*(MW^0.835)*F11DCA*VP*((1/29+1/MW)^0.25)*(RATEair_speed^0.5)*(0.25*pi*Dopening_cont-cleaning^2)]/(T^0.05*Dopening_cont-cleaning^0.5*P^0.5)]\n\nMass Transfer Coefficient Model (if air speed >100 ft/min):\nGC=[[(1.93E-7*(MW^0.78)*F11DCA*VP*((1/29+1/MW)^0.33)*(RATEair_speed^0.78)*(0.25*pi*Dopening_cont-cleaning^2)]/(T^0.4*Dopening_cont-cleaning^0.11*(T^0.5-5.87)^(2/3)]",{"$f":"IF(Air_speed>100,(0.000000193*POWER(MW_11DCA,0.78)*F_11DCA*VP_11DCA*POWER((1/29)+(1/MW_11DCA),0.33)*POWER(Air_speed,0.78)*(PI()*POWER(D_contcleaning,2)/4))/(POWER(Temp,0.4)*POWER(D_contcleaning,0.11)*POWER(POWER(Temp,0.5)-5.87,2/3)),(0.0000000824*POWER(MW_11DCA,0.835)*F_11DCA*VP_11DCA*POWER((1/29)+(1/MW_11DCA),0.25)*POWER(Air_speed,0.5)*(PI()*POWER(D_contcleaning,2)/4))/(POWER(Temp,0.05)*POWER(D_contcleaning,0.5)*POWER(Pressure_Torr,0.5)))","v":{"$error":"#NAME?"}},"g/s"]
[null,"Activity C volumetric concentration of chemical in air (Container cleaning)","CvC","Lesser of:\n(170,000*T*GC)/(MW*Q*k)\nOR\n(1,000,000*F11DCA*VP)/760",{"$f":"_xll.RiskOutput(\"Cv_C\")+IF((170000*Temp*G_C)/(MW_11DCA*Ventilation_rate*Mixing_factor)>((1000000*F_11DCA*VP_11DCA)/760),((1000000*F_11DCA*VP_11DCA)/760),(170000*Temp*G_C)/(MW_11DCA*Ventilation_rate*Mixing_factor))","v":{"$error":"#NAME?"}},"ppm"]
[null,"Activity C mass concentration of chemical in air (Container cleaning)","CmC","CvC*MW/Vm",{"$f":"_xll.RiskOutput(\"Cm_C\")+Cv_C*MW_11DCA/Vm_11DCA","v":{"$error":"#NAME?"}},"mg/m3"]
[null,"Hours exposed per day for activity C (Container Cleaning)","hC","[(Containers/year)/(EFyearly)]/Ratefill_drum",{"$f":"1/Rate_filldrum","v":0.05},"hr/day"]
["Scenario 1","Combined activity times","hsum","hA+hB+hC",{"$f":"_xll.RiskOutput(\"Hours exposed per day\")+hA+hB+hC","v":{"$error":"#NAME?"}},"hr/day"]
[null,"Averaging time","AT","WY * 365 days/yr * 24 hr/day",{"$f":"WY*365*24","v":{"$error":"#NAME?"}},"hours"]
[null,"Time-weighted average (8-hr)","TWA8hr","[(CmA * hA) + (CmB * hB) + (CmC * hC)] / 8 hrs",{"$f":"_xll.RiskOutput(\"TWA_8hr\")+((Cm_A*hA)+(Cm_B*hB)+(Cm_C*hC))/8","v":{"$error":"#NAME?"}},"mg/m3"]
[null,"Time-weighted average (24-hr)","TWA24hr","[(CmA * hA) + (CmB * hB) + (CmC * hC)] / 24 hrs",{"$f":"_xll.RiskOutput(\"TWA_24hr\")+((Cm_A*hA)+(Cm_B*hB)+(Cm_C*hC))/24","v":{"$error":"#NAME?"}},"mg/m3"]
[null,"Average daily concentration","ADCchronic","(TWA8hr * ED * EFyearly * WY) / AT",{"$f":"_xll.RiskOutput(\"ADC_chronic\")+(TWA_8hr*ED*EF_yearly*WY)/AT","v":{"$error":"#NAME?"}},"mg/m3"]
[null,"Lifetime average daily concentration","LADC","(TWA8hr * ED * EFyearly * WY) / ATc",{"$f":"_xll.RiskOutput(\"LADC\")+(TWA_8hr*ED*EF_yearly*WY)/ATc","v":{"$error":"#NAME?"}},"mg/m3"]
[null,"Days exposed for subchronic exposure","EFsubchronic","IF(EFyearly < 22 days/yr, EFyearly, 22 days/yr)",{"$f":"IF(EF_yearly<22, EF_yearly,22)","v":{"$error":"#NAME?"}},"days"]
[null,"Subchronic average daily concentration","ADCsubchronic","(TWA8hr * ED * EFsubchronic) / ATsc",{"$f":"_xll.RiskOutput(\"ADC_subchronic\")+(TWA_8hr*ED*EF_subchronic)/ATsc","v":{"$error":"#NAME?"}},"mg/m3"]
["Scenario 2","Combined activity times","hsum_2","hA+hC",{"$f":"_xll.RiskOutput(\"Hours exposed per day_2\")+hA+hC","v":{"$error":"#NAME?"}},"hr/day"]
[null,"Time-weighted average (8-hr)","TWA8hr_2","[(CmA * hA) + (CmC * hC)] / 8 hrs",{"$f":"_xll.RiskOutput(\"TWA_8hr_2\")+((Cm_A*hA)+(Cm_C*hC))/8","v":{"$error":"#NAME?"}},"mg/m3"]
[null,"Time-weighted average (24-hr)","TWA24hr_2","[(CmA * hA) + (CmC * hC)] / 24 hrs",{"$f":"_xll.RiskOutput(\"TWA_24hr_2\")+((Cm_A*hA)+(Cm_C*hC))/24","v":{"$error":"#NAME?"}},"mg/m3"]
[null,"Average daily concentration","ADCchronic_2","(TWA8hr * ED * EFyearly * WY) / AT",{"$f":"_xll.RiskOutput(\"ADC_chronic_2\")+(TWA_8hr_2*ED*EF_yearly*WY)/AT","v":{"$error":"#NAME?"}},"mg/m3"]
[null,"Lifetime average daily concentration","LADC2","(TWA8hr * ED * EFyearly * WY) / ATc",{"$f":"_xll.RiskOutput(\"LADC_2\")+(TWA_8hr_2*ED*EF_yearly*WY)/ATc","v":{"$error":"#NAME?"}},"mg/m3"]
[null,"Subchronic average daily concentration","ADCsubchronic_ 2","(TWA8hr * ED * EFsubchronic) / ATsc",{"$f":"_xll.RiskOutput(\"ADC_subchronic_2\")+(TWA_8hr_2*ED*EF_subchronic)/ATsc","v":{"$error":"#NAME?"}},"mg/m3"]
["Scenario 3","Combined activity times","hsum_3","hB",{"$f":"_xll.RiskOutput(\"Hours exposed per day_3\")+hB","v":{"$error":"#NAME?"}},"hr/day"]
[null,"Time-weighted average (8-hr)","TWA8hr_3","(CmB * hB) / 8 hrs",{"$f":"_xll.RiskOutput(\"TWA_8hr_3\")+(Cm_B*hB)/8","v":{"$error":"#NAME?"}},"mg/m3"]
[null,"Time-weighted average (24-hr)","TWA24hr_3","(CmB * hB) / 24 hrs",{"$f":"_xll.RiskOutput(\"TWA_24hr_3\")+(Cm_B*hB)/24","v":{"$error":"#NAME?"}},"mg/m3"]
[null,"Average daily concentration","ADCchronic_3","(TWA8hr * ED * EFyearly * WY) / AT",{"$f":"_xll.RiskOutput(\"ADC_chronic_3\")+(TWA_8hr_3*ED*EF_yearly*WY)/AT","v":{"$error":"#NAME?"}},"mg/m3"]
[null,"Lifetime average daily concentration","LADC3","(TWA8hr * ED * EFyearly * WY) / ATc",{"$f":"_xll.RiskOutput(\"LADC_3\")+(TWA_8hr_3*ED*EF_yearly*WY)/ATc","v":{"$error":"#NAME?"}},"mg/m3"]
[null,"Subchronic average daily concentration","ADCsubchronic_3","(TWA8hr * ED * EFsubchronic) / ATsc",{"$f":"_xll.RiskOutput(\"ADC_subchronic_3\")+(TWA_8hr_3*ED*EF_subchronic)/ATsc","v":{"$error":"#NAME?"}},"mg/m3"]

{"sheet":"Exposure Results","index":7,"n_rows":50,"n_cols":7,"rows_kept":50,"cut":false,"hidden":false,"merged":[[30,1,30,3],[4,0,4,1],[0,0,0,1],[8,1,8,3],[8,5,8,6],[9,5,9,6],[18,1,18,2],[18,5,18,6],[19,5,19,6]]}
["What-If Scenario"]
["Production Volume Assessed (kg/yr)",{"$f":"ROUND(PV,0)","v":22680}]
["Number of Sites",{"$f":"Ns","v":2}]
[]
["Monte Carlo Simulation Parameters"]
["Number of Iterations",100000]
["Sampling Method","Latin Hypercube"]
[]
[null,"Daily Concentrations",null,null,null,"Exposure Days per Year & Number of Import Containers"]
["Daily Concentrations (mg/m3)","Average Daily Concentration (ADC)","Lifetime Average Daily Concentration (LADC)","Subchronic Average Daily Concentration (ADCsubchronic)",null,"EFyearly (days/yr)"]
["Maximum",{"$f":"_xll.RiskMax(ADC_chronic)","v":{"$error":"#NAME?"}},{"$f":"_xll.RiskMax(LADC)","v":{"$error":"#NAME?"}},{"$f":"_xll.RiskMax(ADC_subchronic)","v":{"$error":"#NAME?"}},null,"Maximum",{"$f":"_xll.RiskMax(EF_yearly)","v":{"$error":"#NAME?"}}]
["99th Percentile",{"$f":"_xll.RiskPercentile(ADC_chronic,0.99)","v":{"$error":"#NAME?"}},{"$f":"_xll.RiskPercentile(LADC,0.99)","v":{"$error":"#NAME?"}},{"$f":"_xll.RiskPercentile(ADC_subchronic,0.99)","v":{"$error":"#NAME?"}},null,"99th Percentile",{"$f":"_xll.RiskPercentile(EF_yearly,0.99)","v":{"$error":"#NAME?"}}]
["95th Percentile",{"$f":"_xll.RiskPercentile(ADC_chronic,0.95)","v":{"$error":"#NAME?"}},{"$f":"_xll.RiskPercentile(LADC,0.95)","v":{"$error":"#NAME?"}},{"$f":"_xll.RiskPercentile(ADC_subchronic,0.95)","v":{"$error":"#NAME?"}},null,"95th Percentile",{"$f":"_xll.RiskPercentile(EF_yearly,0.95)","v":{"$error":"#NAME?"}}]
["50th Percentile",{"$f":"_xll.RiskPercentile(ADC_chronic,0.5)","v":{"$error":"#NAME?"}},{"$f":"_xll.RiskPercentile(LADC,0.5)","v":{"$error":"#NAME?"}},{"$f":"_xll.RiskPercentile(ADC_subchronic,0.5)","v":{"$error":"#NAME?"}},null,"50th Percentile",{"$f":"_xll.RiskPercentile(EF_yearly,0.5)","v":{"$error":"#NAME?"}}]
["5th Percentile",{"$f":"_xll.RiskPercentile(ADC_chronic,0.05)","v":{"$error":"#NAME?"}},{"$f":"_xll.RiskPercentile(LADC,0.05)","v":{"$error":"#NAME?"}},{"$f":"_xll.RiskPercentile(ADC_subchronic,0.05)","v":{"$error":"#NAME?"}},null,"5th Percentile",{"$f":"_xll.RiskPercentile(EF_yearly,0.05)","v":{"$error":"#NAME?"}}]
["Minimum",{"$f":"_xll.RiskMin(ADC_chronic)","v":{"$error":"#NAME?"}},{"$f":"_xll.RiskMin(LADC)","v":{"$error":"#NAME?"}},{"$f":"_xll.RiskMin(ADC_subchronic)","v":{"$error":"#NAME?"}},null,"Minimum",{"$f":"_xll.RiskMin(EF_yearly)","v":{"$error":"#NAME?"}}]
["Mean",{"$f":"_xll.RiskMean(ADC_chronic)","v":{"$error":"#NAME?"}},{"$f":"_xll.RiskMean(LADC)","v":{"$error":"#NAME?"}},{"$f":"_xll.RiskMean(ADC_subchronic)","v":{"$error":"#NAME?"}},null,"Mean",{"$f":"ROUNDUP(_xll.RiskMean(EF_yearly),0)","v":{"$error":"#NAME?"}}]
[]
[null,"Time-Weighted Averages",null,null,null,"Total Sum of hours for activities"]
["Time-Weighted Average (mg/m3)","TWA8hr","TWA24hr",null,null,"hsum (hr/day)"]
["Maximum",{"$f":"_xll.RiskMax(TWA_8hr)","v":{"$error":"#NAME?"}},{"$f":"_xll.RiskMax(TWA_24hr)","v":{"$error":"#NAME?"}},null,null,"Maximum",{"$f":"_xll.RiskMax(h_sum)","v":{"$error":"#NAME?"}}]
["99th Percentile",{"$f":"_xll.RiskPercentile(TWA_8hr,0.99)","v":{"$error":"#NAME?"}},{"$f":"_xll.RiskPercentile(TWA_24hr,0.99)","v":{"$error":"#NAME?"}},null,null,"99th Percentile",{"$f":"_xll.RiskPercentile(h_sum,0.99)","v":{"$error":"#NAME?"}}]
["95th Percentile",{"$f":"_xll.RiskPercentile(TWA_8hr,0.95)","v":{"$error":"#NAME?"}},{"$f":"_xll.RiskPercentile(TWA_24hr,0.95)","v":{"$error":"#NAME?"}},null,null,"95th Percentile",{"$f":"_xll.RiskPercentile(h_sum,0.95)","v":{"$error":"#NAME?"}}]
["50th Percentile",{"$f":"_xll.RiskPercentile(TWA_8hr,0.5)","v":{"$error":"#NAME?"}},{"$f":"_xll.RiskPercentile(TWA_24hr,0.5)","v":{"$error":"#NAME?"}},null,null,"50th Percentile",{"$f":"_xll.RiskPercentile(h_sum,0.5)","v":{"$error":"#NAME?"}}]
["5th Percentile",{"$f":"_xll.RiskPercentile(TWA_8hr,0.05)","v":{"$error":"#NAME?"}},{"$f":"_xll.RiskPercentile(TWA_24hr,0.05)","v":{"$error":"#NAME?"}},null,null,"5th Percentile",{"$f":"_xll.RiskPercentile(h_sum,0.05)","v":{"$error":"#NAME?"}}]
["Minimum",{"$f":"_xll.RiskMin(TWA_8hr)","v":{"$error":"#NAME?"}},{"$f":"_xll.RiskMin(TWA_24hr)","v":{"$error":"#NAME?"}},null,null,"Minimum",{"$f":"_xll.RiskMin(h_sum)","v":{"$error":"#NAME?"}}]
["Mean",{"$f":"_xll.RiskMean(TWA_8hr)","v":{"$error":"#NAME?"}},{"$f":"_xll.RiskMean(TWA_24hr)","v":{"$error":"#NAME?"}},null,null,"Mean",{"$f":"_xll.RiskMean(h_sum)","v":{"$error":"#NAME?"}}]
[]
[]
[]
[null,"Exposure Point"]
["Exposure Point","A. Emptying (drums)","B. Filling (small containers)","C. Container Cleaning (drums)"]
[]
["Mass Concentration (mg/m3)","CmA","CmB","CmC"]
["Maximum",{"$f":"_xll.RiskMax(Cm_A)","v":{"$error":"#NAME?"}},{"$f":"_xll.RiskMax(Cm_B)","v":{"$error":"#NAME?"}},{"$f":"_xll.RiskMax(Cm_C)","v":{"$error":"#NAME?"}}]
["99th Percentile",{"$f":"_xll.RiskPercentile(Cm_A,0.99)","v":{"$error":"#NAME?"}},{"$f":"_xll.RiskPercentile(Cm_B,0.99)","v":{"$error":"#NAME?"}},{"$f":"_xll.RiskPercentile(Cm_C,0.99)","v":{"$error":"#NAME?"}}]
["95th Percentile",{"$f":"_xll.RiskPercentile(Cm_A,0.95)","v":{"$error":"#NAME?"}},{"$f":"_xll.RiskPercentile(Cm_B,0.95)","v":{"$error":"#NAME?"}},{"$f":"_xll.RiskPercentile(Cm_C,0.95)","v":{"$error":"#NAME?"}}]
["50th Percentile",{"$f":"_xll.RiskPercentile(Cm_A,0.5)","v":{"$error":"#NAME?"}},{"$f":"_xll.RiskPercentile(Cm_B,0.5)","v":{"$error":"#NAME?"}},{"$f":"_xll.RiskPercentile(Cm_C,0.5)","v":{"$error":"#NAME?"}}]
["5th Percentile",{"$f":"_xll.RiskPercentile(Cm_A,0.05)","v":{"$error":"#NAME?"}},{"$f":"_xll.RiskPercentile(Cm_B,0.05)","v":{"$error":"#NAME?"}},{"$f":"_xll.RiskPercentile(Cm_C,0.05)","v":{"$error":"#NAME?"}}]
["Minimum",{"$f":"_xll.RiskMin(Cm_A)","v":{"$error":"#NAME?"}},{"$f":"_xll.RiskMin(Cm_B)","v":{"$error":"#NAME?"}},{"$f":"_xll.RiskMin(Cm_C)","v":{"$error":"#NAME?"}}]
["Mean",{"$f":"_xll.RiskMean(Cm_A)","v":{"$error":"#NAME?"}},{"$f":"_xll.RiskMean(Cm_B)","v":{"$error":"#NAME?"}},{"$f":"_xll.RiskMean(Cm_C)","v":{"$error":"#NAME?"}}]
[]
["Volume Concentration (ppm)","CvA","CvB","CvC"]
["Maximum",{"$f":"_xll.RiskMax(Cv_A)","v":{"$error":"#NAME?"}},{"$f":"_xll.RiskMax(Cv_B)","v":{"$error":"#NAME?"}},{"$f":"_xll.RiskMax(Cv_C)","v":{"$error":"#NAME?"}}]
["99th Percentile",{"$f":"_xll.RiskPercentile(Cv_A,0.99)","v":{"$error":"#NAME?"}},{"$f":"_xll.RiskPercentile(Cv_B,0.99)","v":{"$error":"#NAME?"}},{"$f":"_xll.RiskPercentile(Cv_C,0.99)","v":{"$error":"#NAME?"}}]
["95th Percentile",{"$f":"_xll.RiskPercentile(Cv_A,0.95)","v":{"$error":"#NAME?"}},{"$f":"_xll.RiskPercentile(Cv_B,0.95)","v":{"$error":"#NAME?"}},{"$f":"_xll.RiskPercentile(Cv_C,0.95)","v":{"$error":"#NAME?"}}]
["50th Percentile",{"$f":"_xll.RiskPercentile(Cv_A,0.5)","v":{"$error":"#NAME?"}},{"$f":"_xll.RiskPercentile(Cv_B,0.5)","v":{"$error":"#NAME?"}},{"$f":"_xll.RiskPercentile(Cv_C,0.5)","v":{"$error":"#NAME?"}}]
["5th Percentile",{"$f":"_xll.RiskPercentile(Cv_A,0.05)","v":{"$error":"#NAME?"}},{"$f":"_xll.RiskPercentile(Cv_B,0.05)","v":{"$error":"#NAME?"}},{"$f":"_xll.RiskPercentile(Cv_C,0.05)","v":{"$error":"#NAME?"}}]
["Minimum",{"$f":"_xll.RiskMin(Cv_A)","v":{"$error":"#NAME?"}},{"$f":"_xll.RiskMin(Cv_B)","v":{"$error":"#NAME?"}},{"$f":"_xll.RiskMin(Cv_C)","v":{"$error":"#NAME?"}}]
["Mean",{"$f":"_xll.RiskMean(Cv_A)","v":{"$error":"#NAME?"}},{"$f":"_xll.RiskMean(Cv_B)","v":{"$error":"#NAME?"}},{"$f":"_xll.RiskMean(Cv_C)","v":{"$error":"#NAME?"}}]

{"sheet":"Exposure Results (2)","index":8,"n_rows":49,"n_cols":7,"rows_kept":49,"cut":false,"hidden":false,"merged":[[18,5,18,6],[29,1,29,2],[3,0,3,1],[7,1,7,3],[7,5,7,6],[8,5,8,6],[17,1,17,2],[17,5,17,6]]}
["Production Volume Assessed (kg/yr)",{"$f":"ROUND(PV,0)","v":22680}]
["Number of Sites",{"$f":"Ns","v":2}]
[]
["Monte Carlo Simulation Parameters"]
["Number of Iterations",100000]
["Sampling Method","Latin Hypercube"]
[]
[null,"Daily Concentrations",null,null,null,"Exposure Days per Year & Number of Import Containers"]
["Daily Concentrations (mg/m3)","Average Daily Concentration (ADC)","Lifetime Average Daily Concentration (LADC)","Subchronic Average Daily Concentration (ADCsubchronic)",null,"EFyearly (days/yr)"]
["Maximum",{"$f":"_xll.RiskMax(ADC_chronic_2)","v":{"$error":"#NAME?"}},{"$f":"_xll.RiskMax(LADC_2)","v":{"$error":"#NAME?"}},{"$f":"_xll.RiskMax(ADC_subchronic_2)","v":{"$error":"#NAME?"}},null,"Maximum",{"$f":"_xll.RiskMax(EF_yearly)","v":{"$error":"#NAME?"}}]
["99th Percentile",{"$f":"_xll.RiskPercentile(ADC_chronic_2,0.99)","v":{"$error":"#NAME?"}},{"$f":"_xll.RiskPercentile(LADC_2,0.99)","v":{"$error":"#NAME?"}},{"$f":"_xll.RiskPercentile(ADC_subchronic_2,0.99)","v":{"$error":"#NAME?"}},null,"99th Percentile",{"$f":"_xll.RiskPercentile(EF_yearly,0.99)","v":{"$error":"#NAME?"}}]
["95th Percentile",{"$f":"_xll.RiskPercentile(ADC_chronic_2,0.95)","v":{"$error":"#NAME?"}},{"$f":"_xll.RiskPercentile(LADC_2,0.95)","v":{"$error":"#NAME?"}},{"$f":"_xll.RiskPercentile(ADC_subchronic_2,0.95)","v":{"$error":"#NAME?"}},null,"95th Percentile",{"$f":"_xll.RiskPercentile(EF_yearly,0.95)","v":{"$error":"#NAME?"}}]
["50th Percentile",{"$f":"_xll.RiskPercentile(ADC_chronic_2,0.5)","v":{"$error":"#NAME?"}},{"$f":"_xll.RiskPercentile(LADC_2,0.5)","v":{"$error":"#NAME?"}},{"$f":"_xll.RiskPercentile(ADC_subchronic_2,0.5)","v":{"$error":"#NAME?"}},null,"50th Percentile",{"$f":"_xll.RiskPercentile(EF_yearly,0.5)","v":{"$error":"#NAME?"}}]
["5th Percentile",{"$f":"_xll.RiskPercentile(ADC_chronic_2,0.05)","v":{"$error":"#NAME?"}},{"$f":"_xll.RiskPercentile(LADC_2,0.05)","v":{"$error":"#NAME?"}},{"$f":"_xll.RiskPercentile(ADC_subchronic_2,0.05)","v":{"$error":"#NAME?"}},null,"5th Percentile",{"$f":"_xll.RiskPercentile(EF_yearly,0.05)","v":{"$error":"#NAME?"}}]
["Minimum",{"$f":"_xll.RiskMin(ADC_chronic_2)","v":{"$error":"#NAME?"}},{"$f":"_xll.RiskMin(LADC_2)","v":{"$error":"#NAME?"}},{"$f":"_xll.RiskMin(ADC_subchronic_2)","v":{"$error":"#NAME?"}},null,"Minimum",{"$f":"_xll.RiskMin(EF_yearly)","v":{"$error":"#NAME?"}}]
["Mean",{"$f":"_xll.RiskMean(ADC_chronic_2)","v":{"$error":"#NAME?"}},{"$f":"_xll.RiskMean(LADC_2)","v":{"$error":"#NAME?"}},{"$f":"_xll.RiskMean(ADC_subchronic_2)","v":{"$error":"#NAME?"}},null,"Mean",{"$f":"ROUNDUP(_xll.RiskMean(EF_yearly),0)","v":{"$error":"#NAME?"}}]
[]
[null,"Time-Weighted Averages",null,null,null,"Total Sum of hours for Activities A & C"]
["Time-Weighted Average (mg/m3)","TWA8hr","TWA24hr",null,null,"hsum (hr/day)"]
["Maximum",{"$f":"_xll.RiskMax(TWA_8hr_2)","v":{"$error":"#NAME?"}},{"$f":"_xll.RiskMax(TWA_24hr_2)","v":{"$error":"#NAME?"}},null,null,"Maximum",{"$f":"_xll.RiskMax(h_sum_2)","v":{"$error":"#NAME?"}}]
["99th Percentile",{"$f":"_xll.RiskPercentile(TWA_8hr_2,0.99)","v":{"$error":"#NAME?"}},{"$f":"_xll.RiskPercentile(TWA_24hr_2,0.99)","v":{"$error":"#NAME?"}},null,null,"99th Percentile",{"$f":"_xll.RiskPercentile(h_sum_2,0.99)","v":{"$error":"#NAME?"}}]
["95th Percentile",{"$f":"_xll.RiskPercentile(TWA_8hr_2,0.95)","v":{"$error":"#NAME?"}},{"$f":"_xll.RiskPercentile(TWA_24hr_2,0.95)","v":{"$error":"#NAME?"}},null,null,"95th Percentile",{"$f":"_xll.RiskPercentile(h_sum_2,0.95)","v":{"$error":"#NAME?"}}]
["50th Percentile",{"$f":"_xll.RiskPercentile(TWA_8hr_2,0.5)","v":{"$error":"#NAME?"}},{"$f":"_xll.RiskPercentile(TWA_24hr_2,0.5)","v":{"$error":"#NAME?"}},null,null,"50th Percentile",{"$f":"_xll.RiskPercentile(h_sum_2,0.5)","v":{"$error":"#NAME?"}}]
["5th Percentile",{"$f":"_xll.RiskPercentile(TWA_8hr_2,0.05)","v":{"$error":"#NAME?"}},{"$f":"_xll.RiskPercentile(TWA_24hr_2,0.05)","v":{"$error":"#NAME?"}},null,null,"5th Percentile",{"$f":"_xll.RiskPercentile(h_sum_2,0.05)","v":{"$error":"#NAME?"}}]
["Minimum",{"$f":"_xll.RiskMin(TWA_8hr_2)","v":{"$error":"#NAME?"}},{"$f":"_xll.RiskMin(TWA_24hr_2)","v":{"$error":"#NAME?"}},null,null,"Minimum",{"$f":"_xll.RiskMin(h_sum_2)","v":{"$error":"#NAME?"}}]
["Mean",{"$f":"_xll.RiskMean(TWA_8hr_2)","v":{"$error":"#NAME?"}},{"$f":"_xll.RiskMean(TWA_24hr_2)","v":{"$error":"#NAME?"}},null,null,"Mean",{"$f":"_xll.RiskMean(h_sum_2)","v":{"$error":"#NAME?"}}]
[]
[]
[]
[null,"Exposure Point"]
["Exposure Point","A. Emptying (drums)","C. Container Cleaning (drums)"]
[]
["Mass Concentration (mg/m3)","CmA","CmC"]
["Maximum",{"$f":"_xll.RiskMax(Cm_A)","v":{"$error":"#NAME?"}},{"$f":"_xll.RiskMax(Cm_C)","v":{"$error":"#NAME?"}}]
["99th Percentile",{"$f":"_xll.RiskPercentile(Cm_A,0.99)","v":{"$error":"#NAME?"}},{"$f":"_xll.RiskPercentile(Cm_C,0.99)","v":{"$error":"#NAME?"}}]
["95th Percentile",{"$f":"_xll.RiskPercentile(Cm_A,0.95)","v":{"$error":"#NAME?"}},{"$f":"_xll.RiskPercentile(Cm_C,0.95)","v":{"$error":"#NAME?"}}]
["50th Percentile",{"$f":"_xll.RiskPercentile(Cm_A,0.5)","v":{"$error":"#NAME?"}},{"$f":"_xll.RiskPercentile(Cm_C,0.5)","v":{"$error":"#NAME?"}}]
["5th Percentile",{"$f":"_xll.RiskPercentile(Cm_A,0.05)","v":{"$error":"#NAME?"}},{"$f":"_xll.RiskPercentile(Cm_C,0.05)","v":{"$error":"#NAME?"}}]
["Minimum",{"$f":"_xll.RiskMin(Cm_A)","v":{"$error":"#NAME?"}},{"$f":"_xll.RiskMin(Cm_C)","v":{"$error":"#NAME?"}}]
["Mean",{"$f":"_xll.RiskMean(Cm_A)","v":{"$error":"#NAME?"}},{"$f":"_xll.RiskMean(Cm_C)","v":{"$error":"#NAME?"}}]
[]
["Volume Concentration (ppm)","CvA","CvC"]
["Maximum",{"$f":"_xll.RiskMax(Cv_A)","v":{"$error":"#NAME?"}},{"$f":"_xll.RiskMax(Cv_C)","v":{"$error":"#NAME?"}}]
["99th Percentile",{"$f":"_xll.RiskPercentile(Cv_A,0.99)","v":{"$error":"#NAME?"}},{"$f":"_xll.RiskPercentile(Cv_C,0.99)","v":{"$error":"#NAME?"}}]
["95th Percentile",{"$f":"_xll.RiskPercentile(Cv_A,0.95)","v":{"$error":"#NAME?"}},{"$f":"_xll.RiskPercentile(Cv_C,0.95)","v":{"$error":"#NAME?"}}]
["50th Percentile",{"$f":"_xll.RiskPercentile(Cv_A,0.5)","v":{"$error":"#NAME?"}},{"$f":"_xll.RiskPercentile(Cv_C,0.5)","v":{"$error":"#NAME?"}}]
["5th Percentile",{"$f":"_xll.RiskPercentile(Cv_A,0.05)","v":{"$error":"#NAME?"}},{"$f":"_xll.RiskPercentile(Cv_C,0.05)","v":{"$error":"#NAME?"}}]
["Minimum",{"$f":"_xll.RiskMin(Cv_A)","v":{"$error":"#NAME?"}},{"$f":"_xll.RiskMin(Cv_C)","v":{"$error":"#NAME?"}}]
["Mean",{"$f":"_xll.RiskMean(Cv_A)","v":{"$error":"#NAME?"}},{"$f":"_xll.RiskMean(Cv_C)","v":{"$error":"#NAME?"}}]

{"sheet":"Exposure Results (3)","index":9,"n_rows":49,"n_cols":7,"rows_kept":49,"cut":false,"hidden":false,"merged":[[18,5,18,6],[3,0,3,1],[7,1,7,3],[7,5,7,6],[8,5,8,6],[17,1,17,2],[17,5,17,6]]}
["Production Volume Assessed (kg/yr)",{"$f":"ROUND(PV,0)","v":22680}]
["Number of Sites",{"$f":"Ns","v":2}]
[]
["Monte Carlo Simulation Parameters"]
["Number of Iterations",100000]
["Sampling Method","Latin Hypercube"]
[]
[null,"Daily Concentrations",null,null,null,"Exposure Days per Year & Number of Import Containers"]
["Daily Concentrations (mg/m3)","Average Daily Concentration (ADC)","Lifetime Average Daily Concentration (LADC)","Subchronic Average Daily Concentration (ADCsubchronic)",null,"EFyearly (days/yr)"]
["Maximum",{"$f":"_xll.RiskMax(ADC_chronic_3)","v":{"$error":"#NAME?"}},{"$f":"_xll.RiskMax(LADC_3)","v":{"$error":"#NAME?"}},{"$f":"_xll.RiskMax(ADC_subchronic_3)","v":{"$error":"#NAME?"}},null,"Maximum",{"$f":"_xll.RiskMax(EF_yearly)","v":{"$error":"#NAME?"}}]
["99th Percentile",{"$f":"_xll.RiskPercentile(ADC_chronic_3,0.99)","v":{"$error":"#NAME?"}},{"$f":"_xll.RiskPercentile(LADC_3,0.99)","v":{"$error":"#NAME?"}},{"$f":"_xll.RiskPercentile(ADC_subchronic_3,0.99)","v":{"$error":"#NAME?"}},null,"99th Percentile",{"$f":"_xll.RiskPercentile(EF_yearly,0.99)","v":{"$error":"#NAME?"}}]
["95th Percentile",{"$f":"_xll.RiskPercentile(ADC_chronic_3,0.95)","v":{"$error":"#NAME?"}},{"$f":"_xll.RiskPercentile(LADC_3,0.95)","v":{"$error":"#NAME?"}},{"$f":"_xll.RiskPercentile(ADC_subchronic_3,0.95)","v":{"$error":"#NAME?"}},null,"95th Percentile",{"$f":"_xll.RiskPercentile(EF_yearly,0.95)","v":{"$error":"#NAME?"}}]
["50th Percentile",{"$f":"_xll.RiskPercentile(ADC_chronic_3,0.5)","v":{"$error":"#NAME?"}},{"$f":"_xll.RiskPercentile(LADC_3,0.5)","v":{"$error":"#NAME?"}},{"$f":"_xll.RiskPercentile(ADC_subchronic_3,0.5)","v":{"$error":"#NAME?"}},null,"50th Percentile",{"$f":"_xll.RiskPercentile(EF_yearly,0.5)","v":{"$error":"#NAME?"}}]
["5th Percentile",{"$f":"_xll.RiskPercentile(ADC_chronic_3,0.05)","v":{"$error":"#NAME?"}},{"$f":"_xll.RiskPercentile(LADC_3,0.05)","v":{"$error":"#NAME?"}},{"$f":"_xll.RiskPercentile(ADC_subchronic_3,0.05)","v":{"$error":"#NAME?"}},null,"5th Percentile",{"$f":"_xll.RiskPercentile(EF_yearly,0.05)","v":{"$error":"#NAME?"}}]
["Minimum",{"$f":"_xll.RiskMin(ADC_chronic_3)","v":{"$error":"#NAME?"}},{"$f":"_xll.RiskMin(LADC_3)","v":{"$error":"#NAME?"}},{"$f":"_xll.RiskMin(ADC_subchronic_3)","v":{"$error":"#NAME?"}},null,"Minimum",{"$f":"_xll.RiskMin(EF_yearly)","v":{"$error":"#NAME?"}}]
["Mean",{"$f":"_xll.RiskMean(ADC_chronic_3)","v":{"$error":"#NAME?"}},{"$f":"_xll.RiskMean(LADC_3)","v":{"$error":"#NAME?"}},{"$f":"_xll.RiskMean(ADC_subchronic_3)","v":{"$error":"#NAME?"}},null,"Mean",{"$f":"ROUNDUP(_xll.RiskMean(EF_yearly),0)","v":{"$error":"#NAME?"}}]
[]
[null,"Time-Weighted Averages",null,null,null,"Total Sum of hours for Activity B"]
["Time-Weighted Average (mg/m3)","TWA8hr","TWA24hr",null,null,"hsum (hr/day)"]
["Maximum",{"$f":"_xll.RiskMax(TWA_8hr_3)","v":{"$error":"#NAME?"}},{"$f":"_xll.RiskMax(TWA_24hr_3)","v":{"$error":"#NAME?"}},null,null,"Maximum",{"$f":"_xll.RiskMax(h_sum_3)","v":{"$error":"#NAME?"}}]
["99th Percentile",{"$f":"_xll.RiskPercentile(TWA_8hr_3,0.99)","v":{"$error":"#NAME?"}},{"$f":"_xll.RiskPercentile(TWA_24hr_3,0.99)","v":{"$error":"#NAME?"}},null,null,"99th Percentile",{"$f":"_xll.RiskPercentile(h_sum_3,0.99)","v":{"$error":"#NAME?"}}]
["95th Percentile",{"$f":"_xll.RiskPercentile(TWA_8hr_3,0.95)","v":{"$error":"#NAME?"}},{"$f":"_xll.RiskPercentile(TWA_24hr_3,0.95)","v":{"$error":"#NAME?"}},null,null,"95th Percentile",{"$f":"_xll.RiskPercentile(h_sum_3,0.95)","v":{"$error":"#NAME?"}}]
["50th Percentile",{"$f":"_xll.RiskPercentile(TWA_8hr_3,0.5)","v":{"$error":"#NAME?"}},{"$f":"_xll.RiskPercentile(TWA_24hr_3,0.5)","v":{"$error":"#NAME?"}},null,null,"50th Percentile",{"$f":"_xll.RiskPercentile(h_sum_3,0.5)","v":{"$error":"#NAME?"}}]
["5th Percentile",{"$f":"_xll.RiskPercentile(TWA_8hr_3,0.05)","v":{"$error":"#NAME?"}},{"$f":"_xll.RiskPercentile(TWA_24hr_3,0.05)","v":{"$error":"#NAME?"}},null,null,"5th Percentile",{"$f":"_xll.RiskPercentile(h_sum_3,0.05)","v":{"$error":"#NAME?"}}]
["Minimum",{"$f":"_xll.RiskMin(TWA_8hr_3)","v":{"$error":"#NAME?"}},{"$f":"_xll.RiskMin(TWA_24hr_3)","v":{"$error":"#NAME?"}},null,null,"Minimum",{"$f":"_xll.RiskMin(h_sum_3)","v":{"$error":"#NAME?"}}]
["Mean",{"$f":"_xll.RiskMean(TWA_8hr_3)","v":{"$error":"#NAME?"}},{"$f":"_xll.RiskMean(TWA_24hr_3)","v":{"$error":"#NAME?"}},null,null,"Mean",{"$f":"_xll.RiskMean(h_sum_3)","v":{"$error":"#NAME?"}}]
[]
[]
[]
[null,"Exposure Point"]
["Exposure Point","B. Filling (small containers)"]
[]
["Mass Concentration (mg/m3)","CmB"]
["Maximum",{"$f":"_xll.RiskMax(Cm_B)","v":{"$error":"#NAME?"}}]
["99th Percentile",{"$f":"_xll.RiskPercentile(Cm_B,0.99)","v":{"$error":"#NAME?"}}]
["95th Percentile",{"$f":"_xll.RiskPercentile(Cm_B,0.95)","v":{"$error":"#NAME?"}}]
["50th Percentile",{"$f":"_xll.RiskPercentile(Cm_B,0.5)","v":{"$error":"#NAME?"}}]
["5th Percentile",{"$f":"_xll.RiskPercentile(Cm_B,0.05)","v":{"$error":"#NAME?"}}]
["Minimum",{"$f":"_xll.RiskMin(Cm_B)","v":{"$error":"#NAME?"}}]
["Mean",{"$f":"_xll.RiskMean(Cm_B)","v":{"$error":"#NAME?"}}]
[]
["Volume Concentration (ppm)","CvB"]
["Maximum",{"$f":"_xll.RiskMax(Cv_B)","v":{"$error":"#NAME?"}}]
["99th Percentile",{"$f":"_xll.RiskPercentile(Cv_B,0.99)","v":{"$error":"#NAME?"}}]
["95th Percentile",{"$f":"_xll.RiskPercentile(Cv_B,0.95)","v":{"$error":"#NAME?"}}]
["50th Percentile",{"$f":"_xll.RiskPercentile(Cv_B,0.5)","v":{"$error":"#NAME?"}}]
["5th Percentile",{"$f":"_xll.RiskPercentile(Cv_B,0.05)","v":{"$error":"#NAME?"}}]
["Minimum",{"$f":"_xll.RiskMin(Cv_B)","v":{"$error":"#NAME?"}}]
["Mean",{"$f":"_xll.RiskMean(Cv_B)","v":{"$error":"#NAME?"}}]

{"sheet":"Scenario 1_Static","index":10,"n_rows":49,"n_cols":7,"rows_kept":49,"cut":false,"hidden":false,"merged":[[18,5,18,6],[29,1,29,3],[3,0,3,1],[7,1,7,3],[7,5,7,6],[8,5,8,6],[17,1,17,2],[17,5,17,6]]}
["Production Volume Assessed (kg/yr)",22680]
["Number of Sites",2]
[]
["Monte Carlo Simulation Parameters"]
["Number of Iterations",100000]
["Sampling Method","Latin Hypercube"]
[]
[null,"Daily Concentrations",null,null,null,"Exposure Days per Year & Number of Import Containers"]
["Daily Concentrations (mg/m3)","Average Daily Concentration (ADC)","Lifetime Average Daily Concentration (LADC)","Subchronic Average Daily Concentration (ADCsubchronic)",null,"EFyearly (days/yr)"]
["Maximum",13.368035899662315,6.1642448048508012,297.68134216177532,null,"Maximum",129]
["99th Percentile",3.6004183231506475,1.463012263362184,69.1120889119438,null,"99th Percentile",102]
["95th Percentile",2.0426848929431793,0.81365293368626035,38.243943227707618,null,"95th Percentile",81]
["50th Percentile",0.59353278154848532,0.22472239174854214,10.449452460568857,null,"50th Percentile",45]
["5th Percentile",0.22980662489947573,7.6890082373878677E-2,3.4731875685920044,null,"5th Percentile",30]
["Minimum",9.7518003804570264E-2,1.8232768643456864E-2,0.92707862104133409,null,"Minimum",26]
["Mean",0.79858012424902636,0.30867472893868703,14.407533365816018,null,"Mean",49]
[]
[null,"Time-Weighted Averages",null,null,null,"Total Sum of hours for all activities"]
["Time-Weighted Average (mg/m3)","TWA8hr","TWA24hr",null,null,"hsum (hr/day)"]
["Maximum",405.92910294787544,135.30970098262515,null,null,"Maximum",0.42527047448703481]
["99th Percentile",94.243757607196088,31.414585869065363,null,null,"99th Percentile",0.35603255777081877]
["95th Percentile",52.150831674146751,17.383610558048918,null,null,"95th Percentile",0.30783727197912186]
["50th Percentile",14.249253355321168,4.7497511184403889,null,null,"50th Percentile",0.19997192801082597]
["5th Percentile",4.7361648662618245,1.5787216220872748,null,null,"5th Percentile",0.14537149532411511]
["Minimum",1.2641981196018193,0.42139937320060644,null,null,"Minimum",0.11767861134737172]
["Mean",19.646636407930778,6.5488788026436069,null,null,"Mean",0.20993515541120714]
[]
[]
[]
[null,"Exposure Point"]
["Exposure Point","A. Emptying (drums)","B. Filling (small containers)","C. Container Cleaning (drums)"]
[]
["Mass Concentration (mg/m3)","CmA","CmB","CmC"]
["Maximum",36076.749067093027,26616.15879125287,176.68993674208124]
["99th Percentile",7803.2644416484945,4147.3681605420416,19.999535329027861]
["95th Percentile",4242.7571224562635,2237.0308152272846,6.624247097127272]
["50th Percentile",1120.0771030592755,563.28562867341907,0.56723260275654963]
["5th Percentile",355.71549185146944,174.42063932609932,0.18537491464841105]
["Minimum",95.533147787790114,50.512210076017872,4.1120360323330225E-2]
["Mean",1569.7026810342506,809.17501186987681,1.5571801017303317]
[]
["Volume Concentration (ppm)","CvA","CvB","CvC"]
["Maximum",8914.3659897971138,6576.7062399811284,43.659110190438469]
["99th Percentile",1928.1436644598857,1024.7918294618787,4.9417750257173436]
["95th Percentile",1048.3619165644834,552.75799325221942,1.6368149724584313]
["50th Percentile",276.76488296916915,139.18477636245674,0.14016005191912723]
["5th Percentile",87.895338815244344,43.098379297858799,4.5805120395691255E-2]
["Minimum",23.605714637811705,12.481288897004919,1.016061455184865E-2]
["Mean",387.86488682453057,199.94268863282994,0.38477062645080817]

{"sheet":"Scenario 2_Static","index":11,"n_rows":49,"n_cols":7,"rows_kept":49,"cut":false,"hidden":false,"merged":[[18,5,18,6],[29,1,29,2],[3,0,3,1],[7,1,7,3],[7,5,7,6],[8,5,8,6],[17,1,17,2],[17,5,17,6]]}
["Production Volume Assessed (kg/yr)",22680]
["Number of Sites",2]
[]
["Monte Carlo Simulation Parameters"]
["Number of Iterations",100000]
["Sampling Method","Latin Hypercube"]
[]
[null,"Daily Concentrations",null,null,null,"Exposure Days per Year & Number of Import Containers"]
["Daily Concentrations (mg/m3)","Average Daily Concentration (ADC)","Lifetime Average Daily Concentration (LADC)","Subchronic Average Daily Concentration (ADCsubchronic)",null,"EFyearly (days/yr)"]
["Maximum",7.7226817854928802,3.4475315986505231,165.38106280266419,null,"Maximum",129]
["99th Percentile",1.8498081038579866,0.75595986788532821,35.771625906333611,null,"99th Percentile",102]
["95th Percentile",1.0373400949454756,0.41303007041651035,19.455416595030066,null,"95th Percentile",81]
["50th Percentile",0.29266792097492633,0.11090821328363136,5.139164788603523,null,"50th Percentile",45]
["5th Percentile",0.10707121052759366,3.604100545735367E-2,1.6325896768421255,null,"5th Percentile",30]
["Minimum",4.6015657931348201E-2,8.645942087924862E-3,0.43834978602806252,null,"Minimum",26]
["Mean",0.39916003438992054,0.15433199082154825,7.2016076968732223,null,"Mean",49]
[]
[null,"Time-Weighted Averages",null,null,null,"Total Sum of hours for Activities A & C"]
["Time-Weighted Average (mg/m3)","TWA8hr","TWA24hr",null,null,"hsum (hr/day)"]
["Maximum",225.51963109454209,75.173210364847364,null,null,"Maximum",0.1]
["99th Percentile",48.779489872273111,16.259829957424369,null,null,"99th Percentile",0.1]
["95th Percentile",26.530113538677366,8.8433711795591226,null,null,"95th Percentile",0.1]
["50th Percentile",7.0079519844593499,2.3359839948197831,null,null,"50th Percentile",0.1]
["5th Percentile",2.2262586502392621,0.74208621674642072,null,null,"5th Percentile",0.1]
["Minimum",0.59774970822008522,0.19924990274002841,null,null,"Minimum",0.1]
["Mean",9.8203741320998645,3.2734580440332617,null,null,"Mean",0.10000000000018848]
[]
[]
[]
[null,"Exposure Point"]
["Exposure Point","A. Emptying (drums)","C. Container Cleaning (drums)"]
[]
["Mass Concentration (mg/m3)","CmA","CmC"]
["Maximum",36076.749067093027,176.68993674208124]
["99th Percentile",7803.2644416484945,19.999535329027861]
["95th Percentile",4242.7571224562635,6.624247097127272]
["50th Percentile",1120.0771030592755,0.56723260275654963]
["5th Percentile",355.71549185146944,0.18537491464841105]
["Minimum",95.533147787790114,4.1120360323330225E-2]
["Mean",1569.7026810342506,1.5571801017303317]
[]
["Volume Concentration (ppm)","CvA","CvC"]
["Maximum",8914.3659897971138,43.659110190438469]
["99th Percentile",1928.1436644598857,4.9417750257173436]
["95th Percentile",1048.3619165644834,1.6368149724584313]
["50th Percentile",276.76488296916915,0.14016005191912723]
["5th Percentile",87.895338815244344,4.5805120395691255E-2]
["Minimum",23.605714637811705,1.016061455184865E-2]
["Mean",387.86488682453057,0.38477062645080817]

{"sheet":"Scenario 3_Static","index":12,"n_rows":49,"n_cols":7,"rows_kept":49,"cut":false,"hidden":false,"merged":[[18,5,18,6],[3,0,3,1],[7,1,7,3],[7,5,7,6],[8,5,8,6],[17,1,17,2],[17,5,17,6]]}
["Production Volume Assessed (kg/yr)",22680]
["Number of Sites",2]
[]
["Monte Carlo Simulation Parameters"]
["Number of Iterations",100000]
["Sampling Method","Latin Hypercube"]
[]
[null,"Daily Concentrations",null,null,null,"Exposure Days per Year & Number of Import Containers"]
["Daily Concentrations (mg/m3)","Average Daily Concentration (ADC)","Lifetime Average Daily Concentration (LADC)","Subchronic Average Daily Concentration (ADCsubchronic)",null,"EFyearly (days/yr)"]
["Maximum",8.7275445684695558,3.3215837242665875,162.98182066235006,null,"Maximum",129]
["99th Percentile",1.8635049173351204,0.75572295043669246,35.494218987093042,null,"99th Percentile",102]
["95th Percentile",1.0457471105685558,0.41555122948868983,19.532998932523803,null,"95th Percentile",81]
["50th Percentile",0.29269156631103338,0.11056181418338057,5.1320442760484344,null,"50th Percentile",45]
["5th Percentile",0.10754786608483181,3.6121616091585602E-2,1.6338393813938594,null,"5th Percentile",30]
["Minimum",4.3401453750755221E-2,8.4938597801219838E-3,0.40291008544585633,null,"Minimum",26]
["Mean",0.39942008985910382,0.15434273811713914,7.2059256689427285,null,"Mean",49]
[]
[null,"Time-Weighted Averages",null,null,null,"Total Sum of hours for Activity B"]
["Time-Weighted Average (mg/m3)","TWA8hr","TWA24hr",null,null,"hsum (hr/day)"]
["Maximum",222.24793726684101,74.082645755613669,null,null,"Maximum",0.32527047448703483]
["99th Percentile",48.401207709672327,16.13373590322411,null,null,"99th Percentile",0.25603255777081879]
["95th Percentile",26.635907635259731,8.8786358784199102,null,null,"95th Percentile",0.20783727197912188]
["50th Percentile",6.9982421946115014,2.3327473982038338,null,null,"50th Percentile",9.9971928010825981E-2]
["5th Percentile",2.2279627928098082,0.74265426426993608,null,null,"5th Percentile",4.5371495324115108E-2]
["Minimum",0.54942284378980411,0.18314094792993471,null,null,"Minimum",1.7678611347371708E-2]
["Mean",9.8262622758309668,3.2754207586103359,null,null,"Mean",0.10993515541120354]
[]
[]
[]
[null,"Exposure Point"]
["Exposure Point","B. Filling (small containers)"]
[]
["Mass Concentration (mg/m3)","CmB"]
["Maximum",26616.15879125287]
["99th Percentile",4147.3681605420416]
["95th Percentile",2237.0308152272846]
["50th Percentile",563.28562867341907]
["5th Percentile",174.42063932609932]
["Minimum",50.512210076017872]
["Mean",809.17501186987681]
[]
["Volume Concentration (ppm)","CvB"]
["Maximum",6576.7062399811284]
["99th Percentile",1024.7918294618787]
["95th Percentile",552.75799325221942]
["50th Percentile",139.18477636245674]
["5th Percentile",43.098379297858799]
["Minimum",12.481288897004919]
["Mean",199.94268863282994]